bitfinex/quotes_BTCUSD_20260104
["timestamp","ask_amount","ask_price","bid_price","bid_amount"]
[1767554717410,0.0658835,91070.0,91069.0,0.000999]
[1767554717605,0.06588444,91069.0,91064.0,0.0001712]
[1767554717830,0.06588444,91069.0,91055.0,0.21964587]
[1767554717831,0.05490753,91063.0,91057.0,0.06589269]
[1767554717956,0.01098128,91064.0,91060.0,0.01098177]
[1767554718176,0.06588599,91067.0,91064.0,0.000999]
[1767554718382,0.06588458,91069.0,91064.0,0.000999]
[1767554718677,0.06588388,91070.0,91065.0,0.01098116]
[1767554718971,0.022,91069.0,91066.0,0.01098104]
[1767554719307,0.03298068,91069.0,91065.0,0.01098116]
[1767554719539,0.022,91069.0,91066.0,0.01098104]
[1767554719724,0.022,91069.0,91065.0,0.06588679]
[1767554719920,0.021001,91069.0,91065.0,0.06588679]
[1767554720633,0.021001,91069.0,91065.0,0.01098116]
[1767554721020,0.03198168,91069.0,91064.0,0.06588741]
[1767554721223,0.08688518,91069.0,91064.0,0.06588741]
[1767554721642,0.06588498,91068.0,91063.0,0.0109814]
[1767554722502,0.06588498,91068.0,91063.0,0.06588821]
[1767554722681,0.23058472,91073.0,91034.0,0.13821186]
[1767554722682,0.21956643,91089.0,91075.0,0.0548998]
[1767554722882,4e-05,91100.0,91082.0,0.059012]
[1767554722883,0.01097851,91087.0,91082.0,0.059012]
[1767554723039,0.022,91090.0,91088.0,0.01097839]
[1767554723220,0.05488669,91097.0,91089.0,0.01097827]
[1767554723425,0.01097706,91099.0,91093.0,0.06586622]
[1767554723623,0.01097706,91099.0,91091.0,0.01097803]
[1767554723873,0.06586371,91098.0,91092.0,0.06586743]
[1767554724079,0.01097718,91098.0,91093.0,0.0658667]
[1767554724227,0.05488589,91099.0,91093.0,0.01097779]
[1767554724462,0.000999,91093.0,91091.0,0.065868]
[1767554724911,0.01097743,91096.0,91091.0,0.06586811]
[1767554725114,0.01097743,91096.0,91090.0,0.06586888]
[1767554725312,0.01097767,91094.0,91085.0,0.01097875]
[1767554725512,0.0658682,91091.0,91085.0,0.01097875]
[1767554725688,0.01097779,91093.0,91087.0,0.06587096]
[1767554725689,0.06586692,91093.0,91087.0,0.06587096]
[1767554725894,0.01097803,91091.0,91086.0,0.01097863]
[1767554726318,0.06586748,91092.0,91087.0,0.01097851]
[1767554726833,0.01097779,91093.0,91088.0,0.06587034]
[1767554727126,0.01097791,91092.0,91088.0,0.01097839]
[1767554727330,0.0658669,91093.0,91088.0,0.01097839]
[1767554727742,0.06586749,91092.0,91087.0,0.06587052]
[1767554728134,0.06586607,91094.0,91088.0,0.06586986]
[1767554728361,0.01097791,91092.0,91087.0,0.06587052]
[1767554728500,0.01097791,91092.0,91086.0,0.01097863]
[1767554728501,0.000999,91088.0,91086.0,0.05489292]
[1767554728703,0.0658687,91091.0,91085.0,0.06587211]
[1767554728918,0.06586831,91091.0,91086.0,0.01097863]
[1767554729186,0.06586806,91092.0,91086.0,0.06587174]
[1767554729325,0.01097779,91093.0,91087.0,0.05489248]
[1767554729530,0.06586681,91093.0,91087.0,0.05489248]
[1767554729736,0.01097791,91092.0,91088.0,0.01097839]
[1767554730419,0.01097803,91091.0,91087.0,0.01097851]
[1767554730620,0.06586771,91092.0,91087.0,0.01097851]
[1767554731209,0.06586654,91094.0,91089.0,0.01097827]
[1767554731710,0.01097779,91093.0,91088.0,0.06587021]
[1767554731850,0.01097791,91092.0,91088.0,0.01097839]
[1767554733067,0.000999,91088.0,91085.0,0.0658721]
[1767554733289,0.01097767,91094.0,91089.0,0.01097827]
[1767554733489,0.01097755,91095.0,91090.0,0.01097815]
[1767554733892,0.01097767,91094.0,91090.0,0.01097815]
[1767554734079,0.01097767,91094.0,91089.0,0.06586963]
[1767554734533,0.01097767,91094.0,91090.0,0.01097815]
[1767554734722,0.06586551,91095.0,91090.0,0.06586889]
[1767554734887,0.01097767,91094.0,91090.0,0.01097815]
[1767554735788,0.01097779,91093.0,91089.0,0.06586963]
[1767554736124,0.06586621,91094.0,91089.0,0.01097827]
[1767554736325,0.01097779,91093.0,91085.0,0.01097875]
[1767554736485,0.000999,91089.0,91085.0,0.01097875]
[1767554736834,0.06586877,91091.0,91083.0,0.01097899]
[1767554736985,0.06586877,91091.0,91082.0,0.23056143]
[1767554736986,0.05489221,91088.0,91082.0,0.06587465]
[1767554737183,0.06586971,91089.0,91084.0,0.06587315]
[1767554737408,0.06586965,91089.0,91084.0,0.06587315]
[1767554737600,0.06586965,91089.0,91084.0,0.01097887]
[1767554738717,0.01097839,91088.0,91084.0,0.01097887]
[1767554741954,0.06586965,91089.0,91085.0,0.01097875]
[1767554742151,0.01097839,91088.0,91084.0,0.01097887]
[1767554742452,0.01097827,91089.0,91084.0,0.01097887]
[1767554742798,0.01097827,91089.0,91085.0,0.06587252]
[1767554743003,0.0658694,91090.0,91085.0,0.06587252]
[1767554743348,0.06578147,91090.0,91085.0,0.06587252]
[1767554743871,0.022,91092.0,91087.0,0.01097851]
[1767554744075,0.022,91092.0,91090.0,8.7e-05]
[1767554744478,0.022,91092.0,91088.0,0.06586926]
[1767554745786,0.03297791,91092.0,91088.0,0.01097839]
[1767554745981,0.08786747,91092.0,91088.0,0.01097839]
[1767554746675,0.08786747,91092.0,91087.0,0.06587095]
[1767554747531,0.000912,91087.0,91083.0,0.04613008]
[1767554747736,0.000912,91087.0,91084.0,0.01097887]
[1767554748137,0.01097827,91089.0,91084.0,0.01097887]
[1767554748340,0.06586997,91089.0,91085.0,0.01097875]
[1767554749576,0.01097839,91088.0,91084.0,0.01097887]
[1767554749930,0.06587073,91088.0,91083.0,0.06587354]
[1767554750108,0.06587073,91088.0,91081.0,0.21958475]
[1767554750109,0.000912,91083.0,91081.0,0.06587541]
[1767554750312,0.01097863,91086.0,91082.0,0.01097911]
[1767554750649,0.01097851,91087.0,91082.0,0.06587455]
[1767554750650,0.06587147,91087.0,91082.0,0.06587455]
[1767554752315,0.06587147,91087.0,91082.0,0.06587467]
[1767554752518,0.01097851,91087.0,91082.0,0.06587467]
[1767554752721,0.01097839,91088.0,91083.0,0.06587397]
[1767554753123,0.01097851,91087.0,91082.0,0.06587467]
[1767554753308,0.01097851,91087.0,91083.0,0.01097899]
[1767554753484,0.06587121,91087.0,91082.0,0.06587467]
[1767554753695,0.01097839,91088.0,91084.0,0.01097887]
[1767554754518,0.01097851,91087.0,91082.0,0.06587469]
[1767554754749,0.06587118,91087.0,91082.0,0.06587469]
[1767554754917,0.01097875,91085.0,91079.0,0.06587642]
[1767554755112,0.000912,91079.0,91077.0,0.34462278]
[1767554755313,0.05489616,91082.0,91076.0,4e-05]
[1767554755512,0.01097947,91079.0,91076.0,4e-05]
[1767554755739,0.06587557,91081.0,91076.0,0.06591902]
[1767554756055,0.06587557,91081.0,91076.0,4e-05]
[1767554756056,0.06587625,91080.0,91076.0,4e-05]
[1767554756350,0.05489619,91081.0,91080.0,8.7e-05]
[1767554756505,0.01097899,91083.0,91078.0,0.01097959]
[1767554756698,0.06587583,91081.0,91076.0,0.06591788]
[1767554756904,0.06587481,91082.0,91077.0,0.06587729]
[1767554757104,0.01097911,91082.0,91077.0,0.06587817]
[1767554757340,0.06587518,91082.0,91077.0,0.06587817]
[1767554757501,0.01097911,91082.0,91077.0,0.06587817]
[1767554757701,0.01097923,91081.0,91077.0,0.01097972]
[1767554757923,0.05489558,91082.0,91081.0,8.7e-05]
[1767554758125,0.01097911,91082.0,91078.0,0.01097959]
[1767554758450,0.06587399,91083.0,91078.0,0.06587721]
[1767554758681,0.06587594,91081.0,91076.0,0.01101984]
[1767554758835,0.01097923,91081.0,91076.0,4e-05]
[1767554759033,0.01097996,91075.0,91070.0,0.35560334]
[1767554759334,0.06449098,91075.0,91070.0,0.06588309]
[1767554759517,0.06587904,91076.0,91071.0,0.01098044]
[1767554759722,0.06587772,91078.0,91072.0,0.06588183]
[1767554760092,0.06587762,91078.0,91074.0,0.01098008]
[1767554760249,0.01097947,91079.0,91075.0,0.01097996]
[1767554760452,0.01097947,91079.0,91075.0,0.01093905]
[1767554760656,0.06587664,91080.0,91075.0,0.06583846]
[1767554760874,0.01097935,91080.0,91076.0,0.0658789]
[1767554761013,0.06587548,91081.0,91076.0,0.0658789]
[1767554761221,0.01097935,91080.0,91076.0,0.01097984]
[1767554761420,0.05721371,91078.0,91070.0,0.35560334]
[1767554761629,0.11211184,91078.0,91073.0,0.06588118]
[1767554761866,0.06587937,91076.0,91070.0,0.34462278]
[1767554762067,0.01098056,91070.0,91067.0,0.022]
[1767554762288,0.06540934,91070.0,91065.0,0.06588653]
[1767554762494,0.05490463,91067.0,91060.0,0.4105129]
[1767554762785,0.06588052,91074.0,91068.0,0.0109808]
[1767554762993,0.06588052,91074.0,91069.0,0.05490322]
[1767554763242,0.0109802,91073.0,91069.0,0.01098068]
[1767554763443,0.06588136,91073.0,91068.0,0.06588433]
[1767554763796,0.06588195,91072.0,91067.0,0.06588552]
[1767554763996,0.01098056,91070.0,91066.0,0.01102104]
[1767554764181,0.01098068,91069.0,91066.0,4e-05]
[1767554764385,0.05490583,91065.0,91060.0,0.34462278]
[1767554764580,0.01098116,91065.0,91060.0,0.0001081]
[1767554764786,0.05490824,91061.0,91060.0,0.0001081]
[1767554765208,0.05490824,91061.0,91060.0,1e-07]
[1767554767352,0.01098177,91060.0,91055.0,0.05491174]
[1767554767498,0.05490824,91061.0,91054.0,0.01098249]
[1767554767499,0.01098189,91059.0,91054.0,0.01098249]
[1767554767699,0.01098189,91059.0,91054.0,0.06589489]
[1767554767901,0.06589113,91060.0,91055.0,0.06589414]
[1767554769044,0.01098189,91059.0,91055.0,0.01098237]
[1767554769266,0.01098357,91045.0,91037.0,0.05777612]
[1767554769475,0.0549191,91043.0,91037.0,0.01098454]
[1767554769744,0.054919,91044.0,91038.0,0.01098442]
[1767554769949,0.054919,91044.0,91039.0,0.0109843]
[1767554770074,0.03298333,91047.0,91040.0,0.01107838]
[1767554770274,0.0549191,91043.0,91040.0,9.42e-05]
[1767554770494,0.0549191,91043.0,91033.0,0.03298502]
[1767554770495,0.01107818,91040.0,91036.0,0.01098466]
[1767554770696,0.06599912,91040.0,91036.0,7.93e-05]
[1767554770899,0.06590512,91040.0,91036.0,7.93e-05]
[1767554771098,0.05492137,91040.0,91036.0,7.93e-05]
[1767554771299,0.01098406,91041.0,91036.0,0.06598727]
[1767554771522,0.06590768,91037.0,91032.0,0.01098514]
[1767554771734,0.06590768,91037.0,91033.0,0.01098502]
[1767554772031,0.01098466,91036.0,91032.0,0.01098514]
[1767554772258,0.06601449,91037.0,91033.0,0.01098502]
[1767554772259,0.00010681,91037.0,91033.0,0.01098502]
[1767554772865,0.01109135,91037.0,91032.0,0.06591086]
[1767554773288,0.00010681,91037.0,91034.0,0.06590919]
[1767554773902,0.00010681,91037.0,91034.0,0.0109849]
[1767554774343,0.00010681,91037.0,91033.0,0.06590972]
[1767554774794,0.00010681,91037.0,91034.0,0.0109849]
[1767554775002,0.01109135,91037.0,91033.0,0.01098502]
[1767554775625,0.06601412,91037.0,91032.0,0.06591087]
[1767554776471,0.06601412,91037.0,91031.0,0.06591155]
[1767554776673,0.05492342,91036.0,91031.0,0.06591155]
[1767554776881,0.0548547,91036.0,91031.0,0.06591155]
[1767554777311,0.06583936,91036.0,91031.0,0.06591155]
[1767554777488,0.06583936,91036.0,91027.0,4e-05]
[1767554777489,0.05492694,91030.0,91027.0,4e-05]
[1767554778276,0.10116106,91030.0,91027.0,4e-05]
[1767554779347,0.01098514,91032.0,91027.0,0.01102575]
[1767554779761,0.06591141,91032.0,91027.0,0.01102575]
[1767554779990,0.06591088,91032.0,91027.0,0.06595403]
[1767554780203,0.06591088,91032.0,91027.0,0.01102575]
[1767554781448,0.01098502,91033.0,91027.0,0.01102575]
[1767554781758,0.01098514,91032.0,91028.0,0.01098563]
[1767554781924,0.06591113,91032.0,91027.0,0.06595334]
[1767554782129,0.0549264,91031.0,91027.0,0.01102575]
[1767554782310,0.06591113,91032.0,91027.0,0.01102575]
[1767554782490,0.06591113,91032.0,91029.0,2e-07]
[1767554782888,0.05492661,91031.0,91029.0,2e-07]
[1767554783312,0.05492694,91030.0,91029.0,2e-07]
[1767554783924,0.01098551,91029.0,91024.0,0.01098611]
[1767554784094,0.06591242,91030.0,91025.0,0.06591593]
[1767554784286,0.06581992,91028.0,91023.0,0.06591732]
[1767554784496,0.01089163,91028.0,91024.0,0.01098611]
[1767554784689,0.06591323,91029.0,91024.0,0.06591637]
[1767554784916,0.06591323,91029.0,91022.0,0.01098635]
[1767554784917,0.01098563,91028.0,91022.0,0.01098635]
[1767554785085,0.05492747,91030.0,91024.0,0.06591651]
[1767554786250,0.06591308,91029.0,91024.0,0.06591651]
[1767554786595,0.01098563,91028.0,91024.0,0.06591651]
[1767554787450,0.05492649,91031.0,91026.0,0.01098587]
[1767554787624,0.06591175,91031.0,91026.0,0.0659151]
[1767554788724,0.01098538,91030.0,91026.0,0.01098587]
[1767554789008,0.06591175,91031.0,91026.0,0.06591507]
[1767554789247,0.01098538,91030.0,91026.0,0.01098587]
[1767554789469,0.01098538,91030.0,91025.0,0.06591537]
[1767554789470,0.01098551,91029.0,91025.0,0.06591537]
[1767554789672,0.01098551,91029.0,90983.0,0.28371186]
[1767554789673,0.05493114,91024.0,91019.0,0.05493352]
[1767554790015,0.05493114,91024.0,91018.0,9.42e-05]
[1767554790016,0.000999,91020.0,91018.0,9.42e-05]
[1767554790186,0.000999,91020.0,91018.0,0.0550282]
[1767554790363,0.01098635,91022.0,91018.0,9.42e-05]
[1767554790575,0.01102623,91023.0,91019.0,0.01098671]
[1767554790918,4e-05,91023.0,91019.0,0.01098671]
[1767554791464,0.01102623,91023.0,91019.0,0.01098671]
[1767554791660,0.01102623,91023.0,91017.0,0.05493479]
[1767554791661,0.06595755,91023.0,91018.0,0.01098683]
[1767554791836,4e-05,91023.0,91019.0,0.06592029]
[1767554792060,0.01102623,91023.0,91018.0,0.01098683]
[1767554792305,4e-05,91023.0,91019.0,0.01098671]
[1767554792530,4e-05,91023.0,91018.0,0.23072297]
[1767554792531,0.02214681,91037.0,91034.0,0.0109849]
[1767554792734,0.00014681,91037.0,91034.0,0.06590892]
[1767554792905,0.00014681,91037.0,91034.0,0.0109849]
[1767554793116,0.00014681,91037.0,91035.0,0.05492333]
[1767554793321,0.00014681,91037.0,91036.0,0.05492332]
[1767554794941,0.00014681,91037.0,91035.0,0.05492333]
[1767554795173,0.00014681,91037.0,91036.0,0.05492332]
[1767554795683,0.00014681,91037.0,91036.0,0.05483332]
[1767554796716,0.000999,91036.0,91034.0,0.0549242]
[1767554796920,0.000999,91036.0,91034.0,0.0109849]
[1767554797159,0.00014681,91037.0,91033.0,0.06590976]
[1767554797318,0.00014681,91037.0,91034.0,0.06590936]
[1767554797529,0.00014681,91037.0,91033.0,0.01098502]
[1767554797829,0.01098502,91033.0,91028.0,0.01098563]
[1767554798030,0.01098502,91033.0,91027.0,0.0659141]
[1767554798031,0.01098514,91032.0,91027.0,0.0659141]
[1767554798253,0.11568776,91033.0,91032.0,0.00130295]
[1767554798425,0.04977753,91033.0,91028.0,0.01098563]
[1767554798779,0.04977753,91032.0,91029.0,0.06591303]
[1767554798950,0.04977753,91032.0,91030.0,0.05492652]
[1767554799147,0.04977753,91032.0,91027.0,0.06591394]
[1767554799349,0.04977753,91032.0,91029.0,0.06591288]
[1767554799560,0.04977753,91032.0,91028.0,0.06591325]
[1767554800255,0.04977753,91032.0,91029.0,0.01098551]
[1767554800460,0.06076267,91032.0,91027.0,0.01098575]
[1767554800730,0.01778978,91030.0,91029.0,0.05492755]
[1767554800933,0.06590911,91035.0,91030.0,0.01098538]
[1767554802246,0.06590911,91035.0,91030.0,0.06591213]
[1767554802451,0.0109849,91034.0,91030.0,0.01098538]
[1767554803076,0.06590888,91035.0,91030.0,0.06591224]
[1767554803402,0.01098478,91035.0,91030.0,0.06591224]
[1767554803824,0.06590956,91034.0,91027.0,0.06591449]
[1767554804042,0.000999,91030.0,91028.0,0.05492778]
[1767554804258,0.000999,91030.0,91028.0,0.06591341]
[1767554804479,0.06590989,91035.0,91030.0,0.01098538]
[1767554804602,0.06590953,91034.0,91029.0,0.06591275]
[1767554804803,0.06590989,91035.0,91030.0,0.01098538]
[1767554805003,0.0109849,91034.0,91030.0,0.01098538]
[1767554806478,0.00014681,91037.0,91031.0,0.01098526]
[1767554806680,0.01113135,91037.0,91032.0,0.01098514]
[1767554806837,0.01098466,91036.0,91031.0,0.06591114]
[1767554807034,0.06605421,91037.0,91032.0,0.06591082]
[1767554807463,0.06076219,91036.0,91032.0,0.06591082]
[1767554807656,0.06076219,91036.0,91032.0,0.01098514]
[1767554808724,0.11568555,91036.0,91031.0,0.06591114]
[1767554809018,0.06076219,91036.0,91032.0,0.01098514]
[1767554809993,0.04977753,91036.0,91032.0,0.01098514]
[1767554810132,0.04977753,91036.0,91032.0,0.06591064]
[1767554810328,0.06605421,91037.0,91032.0,0.06591064]
[1767554810583,0.06605421,91037.0,91033.0,0.01098502]
[1767554811135,0.06605421,91037.0,91032.0,0.06591078]
[1767554811386,0.06605421,91037.0,91033.0,0.01098502]
[1767554811810,0.01113135,91037.0,91033.0,0.01098502]
[1767554812494,0.00014681,91037.0,91032.0,0.01098514]
[1767554812636,0.01098466,91036.0,91032.0,0.01098514]
[1767554812838,0.06605455,91037.0,91032.0,0.0659108]
[1767554813480,0.01098466,91036.0,91031.0,0.06591109]
[1767554814047,0.01098478,91035.0,91031.0,0.01098526]
[1767554814566,0.01098466,91036.0,91031.0,0.06591109]
[1767554814971,0.06590824,91036.0,91031.0,0.06591146]
[1767554815609,0.01098466,91036.0,91032.0,0.01098514]
[1767554815949,0.000999,91032.0,91026.0,0.04653617]
[1767554816146,0.01198414,91032.0,91028.0,0.01098563]
[1767554816422,0.000999,91032.0,91028.0,0.06591342]
[1767554816631,0.06590952,91034.0,91029.0,0.01098551]
[1767554816771,0.06591044,91033.0,91028.0,0.01098563]
[1767554816976,0.06590952,91034.0,91028.0,0.01098563]
[1767554816977,0.06590952,91034.0,91029.0,0.01098551]
[1767554817215,0.06590952,91034.0,91030.0,0.01098538]
[1767554817413,0.06590877,91035.0,91030.0,0.0659122]
[1767554817742,0.0109849,91034.0,91029.0,0.06591306]
[1767554818077,0.06591032,91033.0,91028.0,0.06591375]
[1767554818278,0.06590987,91034.0,91029.0,0.06591282]
[1767554818482,0.0659088,91035.0,91030.0,0.01098538]
[1767554818690,0.06590871,91035.0,91031.0,0.01098526]
[1767554819784,0.06590871,91035.0,91030.0,0.06591191]
[1767554819991,0.01098478,91035.0,91031.0,0.06591117]
[1767554820162,0.01098478,91035.0,91031.0,0.01098526]
[1767554820504,0.06590831,91036.0,91031.0,0.06591158]
[1767554820849,0.05492513,91033.0,91028.0,0.01098563]
[1767554821055,0.05492513,91033.0,91024.0,0.01098611]
[1767554821056,0.05493054,91025.0,91019.0,0.05493344]
[1767554821260,0.04738867,91025.0,91019.0,0.03298671]
[1767554821460,0.05837502,91022.0,91017.0,0.01098695]
[1767554821659,0.04738867,91020.0,91016.0,0.06592245]
[1767554821866,0.04738867,91020.0,91018.0,0.05493371]
[1767554822061,0.04738867,91020.0,91019.0,0.05493358]
[1767554822763,0.05492819,91028.0,91022.0,0.01098635]
[1767554822764,0.04738867,91026.0,91022.0,0.01098635]
[1767554822967,0.04738867,91026.0,91022.0,0.06587361]
[1767554823162,0.04738867,91026.0,91023.0,0.06591684]
[1767554823367,0.022,91031.0,91028.0,0.01098563]
[1767554824032,0.04753548,91037.0,91032.0,0.01098514]
[1767554824234,0.00014681,91037.0,91033.0,0.01098502]
[1767554824452,0.00014681,91037.0,91033.0,0.01094107]
[1767554824653,0.00014681,91037.0,91033.0,0.05492495]
[1767554825056,0.00014681,91037.0,91034.0,0.0109849]
[1767554825553,0.00014681,91037.0,91034.0,0.06590891]
[1767554825749,0.00014681,91037.0,91035.0,0.05492338]
[1767554825945,0.00014681,91037.0,91033.0,0.06590964]
[1767554826152,0.00014681,91037.0,91034.0,0.11362237]
[1767554826350,0.00014681,91037.0,91035.0,0.04771299]
[1767554827229,0.00014681,91037.0,91035.0,0.10263643]
[1767554829069,0.00014681,91037.0,91035.0,0.04771299]
[1767554831294,0.00014681,91037.0,91030.0,0.21970778]
[1767554831513,0.00014681,91037.0,91034.0,0.05492397]
[1767554831788,0.00014681,91037.0,91035.0,0.05492364]
[1767554832471,0.05491872,91044.0,91039.0,0.0109843]
[1767554832689,0.000999,91039.0,91037.0,0.06605353]
[1767554832888,0.0109837,91044.0,91039.0,0.0109843]
[1767554833187,0.06590146,91045.0,91039.0,0.0109843]
[1767554833390,0.01098357,91045.0,91040.0,0.01098418]
[1767554833767,0.01098357,91045.0,91040.0,0.00998518]
[1767554834175,0.01098357,91045.0,91041.0,0.01098406]
[1767554834373,0.01098345,91046.0,91040.0,0.06490602]
[1767554834959,0.0549181,91045.0,91035.0,0.23068015]
[1767554835233,0.01098357,91045.0,91040.0,0.01098418]
[1767554835406,0.01098345,91046.0,91041.0,0.06590428]
[1767554835706,0.01098333,91047.0,91042.0,0.01098394]
[1767554836941,0.01098345,91046.0,91041.0,0.06590428]
[1767554837102,0.06590002,91047.0,91042.0,0.01098394]
[1767554837840,0.06590002,91047.0,91041.0,0.06590428]
[1767554838032,0.06590158,91045.0,91039.0,0.06590552]
[1767554838249,0.06590183,91046.0,91041.0,0.01098406]
[1767554838643,0.06590201,91045.0,91039.0,0.06590552]
[1767554838800,0.06590183,91046.0,91040.0,0.06590494]
[1767554839003,0.022,91049.0,91023.0,0.32958501]
[1767554839004,0.022,91049.0,91046.0,0.01198245]
[1767554839211,0.022,91049.0,91046.0,0.06689969]
[1767554839393,0.022,91049.0,91047.0,0.05491622]
[1767554839603,4e-05,91052.0,91046.0,0.01098345]
[1767554839871,4e-05,91052.0,91051.0,0.05491427]
[1767554840007,4e-05,91052.0,91051.0,0.10262726]
[1767554840223,0.0006121,91055.0,91052.0,0.01098273]
[1767554840425,1e-07,91055.0,91053.0,0.05491303]
[1767554841641,1e-07,91055.0,91054.0,0.05486747]
[1767554842096,0.06589062,91060.0,91054.0,0.06584996]
[1767554842270,0.01098189,91059.0,91055.0,0.01098237]
[1767554843059,0.01098177,91060.0,91055.0,0.06589413]
[1767554843267,0.06589114,91060.0,91055.0,0.01093738]
[1767554843478,0.022,91061.0,91058.0,0.01098201]
[1767554843785,4e-05,91062.0,91059.0,0.05490945]
[1767554844015,4e-05,91062.0,91059.0,0.01098189]
[1767554844240,0.06588528,91069.0,91063.0,0.0109814]
[1767554844443,0.0002213,91068.0,91065.0,0.01098116]
[1767554844627,0.0002213,91068.0,91066.0,0.05490498]
[1767554844980,0.000692,91066.0,91063.0,0.0109814]
[1767554845185,0.000692,91066.0,91062.0,0.01098152]
[1767554845423,0.0112021,91068.0,91059.0,0.04771299]
[1767554845585,0.01098104,91066.0,91062.0,0.01098152]
[1767554845786,0.01098104,91066.0,91061.0,0.01098164]
[1767554846164,0.01098104,91066.0,91061.0,0.06588985]
[1767554847328,0.01098104,91066.0,91062.0,0.01098152]
[1767554847694,0.06588572,91067.0,91062.0,0.01098152]
[1767554847897,0.06588572,91067.0,91059.0,0.05869488]
[1767554847898,0.06588818,91064.0,91059.0,0.04771299]
[1767554848095,0.01098128,91064.0,91059.0,0.04771299]
[1767554848310,0.0109814,91063.0,91059.0,0.01098189]
[1767554848745,0.000692,91059.0,91057.0,0.06589164]
[1767554848951,0.00013908,91059.0,91056.0,0.06589348]
[1767554849104,0.0109814,91063.0,91058.0,0.01098201]
[1767554849493,0.01098189,91059.0,91050.0,0.022]
[1767554849701,0.02238867,91049.0,91046.0,0.06590069]
[1767554850062,0.01098466,91036.0,91028.0,0.01098563]
[1767554850299,0.04738867,91041.0,91037.0,0.01098454]
[1767554850500,0.04738867,91041.0,91038.0,0.06590654]
[1767554850702,0.0549164,91048.0,91042.0,0.01098394]
[1767554850903,0.06589875,91049.0,91042.0,0.06590358]
[1767554851113,0.01098297,91050.0,91043.0,0.0659027]
[1767554851287,0.01098285,91051.0,91045.0,0.06590115]
[1767554851611,0.01098297,91050.0,91045.0,0.06590115]
[1767554851806,0.01098285,91051.0,91046.0,0.06590072]
[1767554852106,4e-05,91052.0,91047.0,0.11481348]
[1767554852310,0.06589748,91051.0,91047.0,0.04891462]
[1767554853119,0.01098297,91050.0,91047.0,0.04891462]
[1767554855275,0.02191207,91049.0,91046.0,0.01098345]
[1767554856078,0.02187207,91049.0,91046.0,0.01098345]
[1767554856896,0.02187207,91049.0,91045.0,0.06590134]
[1767554857065,0.02187207,91049.0,91047.0,0.04919572]
[1767554859088,0.02187207,91049.0,91048.0,0.04919572]
[1767554860347,0.02187207,91049.0,91048.0,0.1041118]
[1767554861421,0.02187207,91049.0,91048.0,0.04919572]
[1767554861753,0.02187207,91049.0,91046.0,0.06589963]
[1767554863275,0.02187207,91049.0,91046.0,0.01098345]
[1767554863614,0.0877709,91049.0,91044.0,0.0109837]
[1767554863746,0.03285516,91049.0,91044.0,0.0109837]
[1767554863947,0.02187207,91049.0,91045.0,0.01098357]
[1767554865081,0.02187207,91049.0,91046.0,0.06590021]
[1767554865466,0.02187207,91049.0,91045.0,0.06590136]
[1767554865661,0.02187207,91049.0,91046.0,0.05491688]
[1767554866019,0.02187207,91049.0,91046.0,0.01098345]
[1767554868303,0.02187207,91049.0,91046.0,0.06590061]
[1767554870631,0.06589732,91051.0,91046.0,0.06590061]
[1767554871049,0.06589732,91051.0,91046.0,0.01098345]
[1767554871482,0.01098297,91050.0,91045.0,0.06590088]
[1767554871692,0.02187207,91049.0,91045.0,0.06590088]
[1767554871891,0.03285516,91049.0,91045.0,0.01098357]
[1767554872306,0.02187207,91049.0,91045.0,0.06590131]
[1767554873173,0.02187207,91049.0,91046.0,0.06590026]
[1767554874416,0.02187207,91049.0,91047.0,0.05491627]
[1767554874924,0.02187207,91049.0,91046.0,0.06590026]
[1767554875099,0.02187207,91049.0,91047.0,0.05491648]
[1767554876871,0.02187207,91049.0,91046.0,0.06590026]
[1767554877062,0.02187207,91049.0,91045.0,0.06590044]
[1767554877063,0.02187207,91049.0,91045.0,0.01098357]
[1767554877518,0.02187207,91049.0,91046.0,0.01098345]
[1767554877875,0.03285516,91049.0,91044.0,0.06590218]
[1767554878216,0.08777079,91049.0,91044.0,0.06590218]
[1767554878517,0.08777079,91049.0,91038.0,0.04919572]
[1767554878518,0.01098418,91040.0,91038.0,0.04919572]
[1767554878662,0.01098406,91041.0,91040.0,0.00043428]
[1767554878869,0.11272292,91041.0,91040.0,0.00043428]
[1767554880071,0.0109837,91044.0,91040.0,0.01141846]
[1767554880290,0.0659024,91044.0,91040.0,0.00043428]
[1767554880521,0.02187207,91043.0,91040.0,0.00043428]
[1767554880706,0.03285589,91043.0,91040.0,0.00043428]
[1767554880887,0.02187207,91043.0,91041.0,0.05492026]
[1767554881088,0.01303288,91043.0,91042.0,0.0549197]
[1767554881370,4e-05,91052.0,91047.0,0.05491668]
[1767554881588,0.01098297,91050.0,91045.0,0.01098357]
[1767554881814,0.01098297,91050.0,91042.0,0.00509442]
[1767554882020,0.06589785,91050.0,91044.0,0.05491805]
[1767554882212,0.06589785,91050.0,91043.0,0.05491874]
[1767554882213,0.01098309,91049.0,91043.0,0.05491874]
[1767554882413,0.06589785,91050.0,91046.0,0.01098345]
[1767554882613,0.0658973,91051.0,91046.0,0.01098345]
[1767554882818,0.01098285,91051.0,91045.0,0.06590133]
[1767554883065,0.0549153,91050.0,91045.0,0.01098357]
[1767554883233,0.01098297,91050.0,91046.0,0.01098345]
[1767554883642,0.06589802,91050.0,91045.0,0.0659011]
[1767554884391,0.01098297,91050.0,91046.0,0.01098345]
[1767554884591,0.01098285,91051.0,91047.0,0.01098333]
[1767554885447,0.0659364,91052.0,91047.0,0.06589986]
[1767554886323,4e-05,91052.0,91047.0,0.06589992]
[1767554886636,0.05495386,91052.0,91047.0,0.01098333]
[1767554887019,0.05491434,91051.0,91046.0,0.06590031]
[1767554888248,0.06589719,91051.0,91046.0,0.06590031]
[1767554888423,0.06593659,91052.0,91047.0,0.06589984]
[1767554888656,0.01098285,91051.0,91047.0,0.01098333]
[1767554889176,0.06593659,91052.0,91047.0,0.06589999]
[1767554889539,0.06593663,91052.0,91047.0,0.06589999]
[1767554889734,0.01102273,91052.0,91048.0,0.01098321]
[1767554889957,4e-05,91052.0,91048.0,0.01098321]
[1767554890140,0.01102273,91052.0,91048.0,0.01098321]
[1767554890338,0.06593643,91052.0,91047.0,0.06589953]
[1767554891780,4e-05,91052.0,91049.0,0.05491509]
[1767554891986,4e-05,91052.0,91048.0,0.01098321]
[1767554891987,0.01102273,91052.0,91047.0,0.06589983]
[1767554892430,4e-05,91052.0,91049.0,0.01098309]
[1767554892627,4e-05,91052.0,91048.0,0.06589916]
[1767554893536,4e-05,91052.0,91049.0,0.01098309]
[1767554893855,4e-05,91052.0,91048.0,0.06589916]
[1767554894831,4e-05,91052.0,91049.0,0.01098309]
[1767554895209,4e-05,91052.0,91048.0,0.06589916]
[1767554895415,0.01102273,91052.0,91048.0,0.01098321]
[1767554895832,0.0109348,91052.0,91048.0,0.01098321]
[1767554896909,0.06584859,91052.0,91047.0,0.0658989]
[1767554897113,0.0109348,91052.0,91048.0,0.01098321]
[1767554898868,0.06584855,91052.0,91048.0,0.01098321]
[1767554899388,0.06589579,91053.0,91048.0,0.06589913]
[1767554899567,0.06589644,91052.0,91044.0,0.219674]
[1767554899941,0.06589579,91053.0,91048.0,0.01098321]
[1767554900084,0.01098273,91052.0,91047.0,0.06589953]